fUSD/lending_fUSD_20240611
["ID","MTS","AMOUNT","RATE_DAILY","PERIOD"]
[329074454,1718081534646,-500.0,0.00029863,4]
[329074455,1718081534657,-500.0,0.00029863,4]
[329074456,1718081534671,-747.97,0.00029863,4]
[329074457,1718081534684,-500.0,0.00029863,4]
[329074458,1718081534697,-512.67178431,0.00029863,4]
[329074459,1718081534710,-500.0,0.00029863,4]
[329074460,1718081534721,-747.97,0.00029863,4]
[329074461,1718081534732,-500.0,0.00029863,4]
[329074462,1718081534743,-500.0,0.00029863,4]
[329074463,1718081534754,-500.0,0.00029863,4]
[329074464,1718081534766,-747.97,0.00029863,4]
[329074465,1718081534777,-500.0,0.00029863,4]
[329074466,1718081534790,-500.0,0.00029863,4]
[329074467,1718081534803,-500.0,0.00029863,4]
[329074468,1718081534815,-459.12616423,0.00029863,4]
[329074469,1718081534829,-500.0,0.00029863,4]
[329074470,1718081534842,-500.0,0.00029863,4]
[329074471,1718081534856,-747.97,0.00029863,4]
[329074472,1718081534868,-500.0,0.00029863,4]
[329074473,1718081534879,-500.0,0.00029863,4]
[329074474,1718081534890,-500.0,0.00029863,4]
[329074475,1718081534902,-747.97,0.00029863,4]
[329074476,1718081534915,-500.0,0.00029863,4]
[329074477,1718081534927,-500.0,0.00029863,4]
[329074478,1718081534940,-500.0,0.00029863,4]
[329074479,1718081534952,-500.0,0.00029863,4]
[329074480,1718081534967,-747.97,0.00029863,4]
[329074481,1718081534979,-500.0,0.00029863,4]
[329074482,1718081534990,-500.0,0.00029863,4]
[329074483,1718081535002,-500.0,0.00029863,4]
[329074484,1718081535013,-500.0,0.00029863,4]
[329074485,1718081535025,-747.97,0.00029863,4]
[329074486,1718081535037,-500.0,0.00029863,4]
[329074487,1718081535049,-500.0,0.00029863,4]
[329074488,1718081535060,-500.0,0.00029863,4]
[329074489,1718081535071,-500.0,0.00029863,4]
[329074490,1718081535082,-500.0,0.00029863,4]
[329074491,1718081535093,-500.0,0.00029863,4]
[329074492,1718081535104,-500.0,0.00029863,4]
[329074493,1718081535115,-500.0,0.00029863,4]
[329074494,1718081535126,-151.0,0.00029863,7]
[329074495,1718081535138,-747.97,0.00029863,4]
[329074496,1718081535148,-500.0,0.00029863,4]
[329074497,1718081535159,-500.0,0.00029863,4]
[329074498,1718081535170,-151.0,0.00029863,7]
[329074499,1718081535182,-500.0,0.00029863,4]
[329074500,1718081535192,-500.0,0.00029863,4]
[329074501,1718081535204,-500.0,0.00029863,4]
[329074502,1718081535217,-500.0,0.00029863,4]
[329074503,1718081535239,-747.97,0.00029863,4]
[329074504,1718081535252,-151.0,0.00029863,7]
[329074505,1718081535264,-151.0,0.00029863,7]
[329074506,1718081535276,-500.0,0.00029863,4]
[329074507,1718081535288,-194.07431971,0.00029863,4]
[329074508,1718081535300,-500.0,0.00029863,4]
[329074509,1718081535313,-500.0,0.00029863,4]
[329074510,1718081535325,-514.00474919,0.00029863,4]
[329074511,1718081535337,-747.97,0.00029863,4]
[329074512,1718081535349,-151.0,0.00029863,7]
[329074513,1718081535362,-151.0,0.00029863,7]
[329074514,1718081535374,-500.0,0.00029863,4]
[329074515,1718081535387,-747.97,0.00029863,4]
[329074516,1718081535399,-500.0,0.00029863,4]
[329074517,1718081535411,-151.0,0.00029863,7]
[329074518,1718081535423,-500.0,0.00029863,4]
[329074519,1718081535436,-151.0,0.00029863,7]
[329074520,1718081535448,-500.0,0.00029863,4]
[329074521,1718081535460,-747.97,0.00029863,4]
[329074522,1718081535808,-500.0,0.00029863,4]
[329074523,1718081535890,-500.0,0.00029863,4]
[329074524,1718081535920,-151.0,0.00029863,7]
[329074525,1718081535939,-151.0,0.00029863,7]
[329074526,1718081535950,-747.97,0.00029863,4]
[329074527,1718081535963,-500.0,0.00029863,4]
[329074528,1718081535973,-500.0,0.00029863,4]
[329074529,1718081535984,-500.0,0.00029863,4]
[329074530,1718081535995,-151.0,0.00029863,7]
[329074531,1718081536006,-747.97,0.00029863,4]
[329074532,1718081536018,-500.0,0.00029863,4]
[329074533,1718081536028,-151.0,0.00029863,7]
[329074534,1718081536039,-500.0,0.00029863,4]
[329074535,1718081536049,-500.0,0.00029863,4]
[329074536,1718081536059,-500.0,0.00029863,4]
[329074537,1718081536069,-747.97,0.00029863,4]
[329074538,1718081536079,-151.0,0.00029863,7]
[329074539,1718081536088,-500.0,0.00029863,4]
[329074540,1718081536098,-500.0,0.00029863,4]
[329074541,1718081536108,-500.0,0.00029863,4]
[329074542,1718081536118,-500.0,0.00029863,4]
[329074543,1718081536128,-151.0,0.00029863,7]
[329074544,1718081536138,-500.0,0.00029863,4]
[329074545,1718081536148,-500.0,0.00029863,4]
[329074546,1718081536159,-500.0,0.00029863,4]
[329074547,1718081536169,-500.0,0.00029863,4]
[329074548,1718081536179,-151.0,0.00029863,7]
[329074549,1718081536189,-500.0,0.00029863,4]
[329074550,1718081536199,-500.0,0.00029863,4]
[329074551,1718081536211,-151.0,0.00029863,7]
[329074552,1718081536221,-500.0,0.00029863,4]
[329074553,1718081536230,-747.97,0.00029863,4]
[329074554,1718081536241,-500.0,0.00029863,4]
[329074555,1718081536251,-386.8135467,0.00029863,4]
[329074556,1718081536261,-500.0,0.00029863,4]
[329074557,1718081536271,-500.0,0.00029863,4]
[329074558,1718081536281,-500.0,0.00029863,4]
[329074559,1718081536292,-500.0,0.00029863,4]
[329074560,1718081536302,-151.0,0.00029863,7]
[329074561,1718081536313,-151.0,0.00029863,7]
[329074562,1718081536323,-500.0,0.00029863,4]
[329074563,1718081536334,-500.0,0.00029863,4]
[329074564,1718081536346,-500.0,0.00029863,4]
[329074565,1718081536358,-445.14720746,0.00029863,4]
[329074566,1718081536369,-500.0,0.00029863,4]
[329074567,1718081536379,-151.0,0.00029863,7]
[329074568,1718081536390,-500.0,0.00029863,4]
[329074569,1718081536401,-500.0,0.00029863,4]
[329074570,1718081536413,-748.0589233,0.00029863,4]
[329074571,1718081536424,-500.0,0.00029863,4]
[329074572,1718081536435,-151.0,0.00029863,7]
[329074573,1718081536446,-500.0,0.00029863,4]
[329074574,1718081536457,-500.0,0.00029863,4]
[329074575,1718081536472,-151.0,0.00029863,7]
[329074576,1718081536483,-500.0,0.00029863,4]
[329074577,1718081536494,-500.0,0.00029863,4]
[329074578,1718081536504,-497.02918034,0.00029863,4]
[329074579,1718081536515,-500.0,0.00029863,4]
[329074580,1718081536525,-151.0,0.00029863,7]
[329074581,1718081536535,-331.76,0.00029863,4]
[329074582,1718081536546,-513.23782037,0.00029863,4]
[329074583,1718081536556,-500.0,0.00029863,4]
[329074584,1718081536569,-500.0,0.00029863,4]
[329074585,1718081536580,-151.0,0.00029863,7]
[329074586,1718081536590,-500.0,0.00029863,4]
[329074587,1718081536600,-280.440835,0.00029863,7]
[329074588,1718081536612,-500.0,0.00029863,4]
[329074589,1718081536623,-500.0,0.00029863,4]
[329074590,1718081536633,-151.0,0.00029863,7]
[329074591,1718081536643,-500.0,0.00029863,4]
[329074592,1718081536656,-500.0,0.00029863,4]
[329074593,1718081536666,-500.0,0.00029863,4]
[329074594,1718081536676,-151.0,0.00029863,7]
[329074595,1718081536686,-500.0,0.00029863,4]
[329074596,1718081536695,-500.0,0.00029863,4]
[329074597,1718081536706,-500.0,0.00029863,4]
[329074598,1718081536719,-151.0,0.00029863,7]
[329074599,1718081536729,-500.0,0.00029863,4]
[329074600,1718081536739,-500.0,0.00029863,4]
[329074601,1718081536749,-500.0,0.00029863,4]
[329074602,1718081536759,-500.0,0.00029863,4]
[329074603,1718081536769,-151.0,0.00029863,7]
[329074604,1718081536779,-500.0,0.00029863,4]
[329074605,1718081536790,-500.0,0.00029863,4]
[329074606,1718081536801,-500.0,0.00029863,4]
[329074607,1718081536811,-500.0,0.00029863,4]
[329074608,1718081536821,-500.0,0.00029863,4]
[329074609,1718081536831,-537.51567278,0.00029863,4]
[329074610,1718081536841,-151.0,0.00029863,7]
[329074611,1718081536851,-500.0,0.00029863,4]
[329074612,1718081536863,-500.0,0.00029863,4]
[329074613,1718081536873,-511.26828162,0.00029863,4]
[329074614,1718081536883,-500.0,0.00029863,4]
[329074615,1718081536893,-500.0,0.00029863,4]
[329074616,1718081536903,-500.0,0.00029863,4]
[329074617,1718081536913,-151.0,0.00029863,7]
[329074618,1718081536928,-500.0,0.00029863,4]
[329074619,1718081536940,-500.0,0.00029863,4]
[329074620,1718081536950,-500.0,0.00029863,4]
[329074621,1718081536962,-500.0,0.00029863,4]
[329074622,1718081536972,-500.0,0.00029863,4]
[329074623,1718081536983,-169.726769,0.00029863,7]
[329074624,1718081536993,-500.0,0.00029863,4]
[329074625,1718081537003,-500.0,0.00029863,4]
[329074626,1718081537013,-500.0,0.00029863,4]
[329074627,1718081537024,-500.0,0.00029863,4]
[329074628,1718081537034,-544.54122702,0.00029863,4]
[329074629,1718081537044,-500.0,0.00029863,4]
[329074630,1718081537057,-500.0,0.00029863,4]
[329074631,1718081537067,-500.0,0.00029863,4]
[329074632,1718081537078,-500.0,0.00029863,4]
[329074633,1718081537088,-500.0,0.00029863,4]
[329074634,1718081537098,-500.0,0.00029863,4]
[329074635,1718081537109,-500.0,0.00029863,4]
[329074636,1718081537122,-500.0,0.00029863,4]
[329074637,1718081537134,-500.0,0.00029863,4]
[329074638,1718081537145,-500.0,0.00029863,4]
[329074639,1718081537155,-500.0,0.00029863,4]
[329074640,1718081537165,-500.0,0.00029863,4]
[329074641,1718081537175,-151.0,0.00029863,7]
[329074642,1718081537184,-500.0,0.00029863,4]
[329074643,1718081537194,-500.0,0.00029863,4]
[329074644,1718081537204,-500.0,0.00029863,4]
[329074645,1718081537217,-500.0,0.00029863,4]
[329074646,1718081537229,-151.0,0.00029863,7]
[329074647,1718081537239,-500.0,0.00029863,4]
[329074648,1718081537250,-603.05530273,0.00029863,4]
[329074649,1718081537261,-500.0,0.00029863,4]
[329074650,1718081537272,-500.0,0.00029863,4]
[329074651,1718081537284,-151.0,0.00029863,7]
[329074652,1718081537294,-196.97197387,0.00029863,4]
[329074653,1718081537304,-500.0,0.00029863,4]
[329074654,1718081537314,-500.0,0.00029863,4]
[329074655,1718081537324,-500.0,0.00029863,4]
[329074656,1718081537335,-500.0,0.00029863,4]
[329074657,1718081537344,-500.0,0.00029863,4]
[329074658,1718081537354,-500.0,0.00029863,4]
[329074659,1718081537364,-500.0,0.00029863,4]
[329074660,1718081537375,-500.0,0.00029863,4]
[329074661,1718081537385,-500.0,0.00029863,4]
[329074662,1718081537395,-500.0,0.00029863,4]
[329074663,1718081537405,-500.0,0.00029863,4]
[329074664,1718081537415,-500.0,0.00029863,4]
[329074665,1718081537425,-500.0,0.00029863,4]
[329074666,1718081537436,-500.0,0.00029863,4]
[329074667,1718081537446,-151.0,0.00029863,7]
[329074668,1718081537456,-500.0,0.00029863,4]
[329074669,1718081537470,-500.0,0.00029863,4]
[329074670,1718081537480,-500.0,0.00029863,4]
[329074671,1718081537490,-500.0,0.00029863,4]
[329074672,1718081537500,-500.0,0.00029863,4]
[329074673,1718081537510,-500.0,0.00029863,4]
[329074674,1718081537520,-500.0,0.00029863,4]
[329074675,1718081537532,-500.0,0.00029863,4]
[329074676,1718081537542,-151.0,0.00029863,7]
[329074677,1718081537553,-500.0,0.00029863,4]
[329074678,1718081537564,-500.0,0.00029863,4]
[329074679,1718081537577,-500.0,0.00029863,4]
[329074680,1718081537588,-500.0,0.00029863,4]
[329074681,1718081537598,-500.0,0.00029863,4]
[329074682,1718081537608,-500.0,0.00029863,4]
[329074683,1718081537620,-500.0,0.00029863,4]
[329074684,1718081537631,-500.0,0.00029863,4]
[329074685,1718081537641,-531.28796557,0.00029863,4]
[329074686,1718081537654,-151.0,0.00029863,7]
[329074687,1718081537664,-500.0,0.00029863,4]
[329074688,1718081537673,-500.0,0.00029863,4]
[329074689,1718081537684,-500.0,0.00029863,4]
[329074690,1718081537694,-199.27452637,0.00029863,4]
[329074691,1718081537703,-500.0,0.00029863,4]
[329074692,1718081537715,-500.0,0.00029863,4]
[329074693,1718081537725,-500.0,0.00029863,4]
[329074694,1718081537734,-500.0,0.00029863,4]
[329074695,1718081537745,-501.72311416,0.00029863,4]
[329074696,1718081537755,-500.0,0.00029863,4]
[329074697,1718081537765,-151.0,0.00029863,7]
[329074698,1718081537775,-500.0,0.00029863,4]
[329074699,1718081537785,-500.0,0.00029863,4]
[329074700,1718081537795,-500.0,0.00029863,4]
[329074701,1718081537805,-4626.089528,0.00029863,7]
[329074702,1718081537815,-500.0,0.00029863,4]
[329074703,1718081537825,-500.0,0.00029863,4]
[329074704,1718081537835,-500.0,0.00029863,4]
[329074705,1718081537845,-500.0,0.00029863,4]
[329074706,1718081537856,-500.0,0.00029863,4]
[329074707,1718081537865,-500.0,0.00029863,4]
[329074708,1718081537876,-500.0,0.00029863,4]
[329074709,1718081537885,-500.0,0.00029863,4]
[329074710,1718081537895,-151.0,0.00029863,7]
[329074711,1718081537905,-500.0,0.00029863,4]
[329074712,1718081537915,-500.0,0.00029863,4]
[329074713,1718081537926,-500.0,0.00029863,4]
[329074714,1718081537936,-449.95388111,0.00029863,4]
[329074715,1718081537946,-4626.089528,0.00029863,7]
[329074716,1718081537956,-500.0,0.00029863,4]
[329074717,1718081537970,-500.0,0.00029863,4]
[329074718,1718081537980,-500.0,0.00029863,4]
[329074719,1718081537991,-500.0,0.00029863,4]
[329074720,1718081538002,-568.93013177,0.00029863,4]
[329074721,1718081538012,-428.02505173,0.00029863,4]
[329074722,1718081538024,-500.0,0.00029863,4]
[329074723,1718081538035,-500.0,0.00029863,4]
[329074724,1718081538046,-500.0,0.00029863,4]
[329074725,1718081538056,-4626.089528,0.00029863,7]
[329074726,1718081538069,-500.0,0.00029863,4]
[329074727,1718081538080,-500.0,0.00029863,4]
[329074728,1718081538090,-500.0,0.00029863,4]
[329074729,1718081538101,-500.0,0.00029863,4]
[329074730,1718081538111,-496.85673368,0.00029863,4]
[329074731,1718081538122,-500.0,0.00029863,4]
[329074732,1718081538132,-500.0,0.00029863,4]
[329074733,1718081538143,-500.0,0.00029863,4]
[329074734,1718081538155,-4626.089528,0.00029863,7]
[329074735,1718081538166,-500.0,0.00029863,4]
[329074736,1718081538176,-500.0,0.00029863,4]
[329074737,1718081538187,-500.0,0.00029863,4]
[329074738,1718081538198,-500.0,0.00029863,4]
[329074739,1718081538209,-500.0,0.00029863,4]
[329074740,1718081538221,-151.0,0.00029863,7]
[329074741,1718081538231,-500.0,0.00029863,4]
[329074742,1718081538241,-175.77554114,0.00029863,4]
[329074743,1718081538251,-4626.089528,0.00029863,7]
[329074744,1718081538261,-500.0,0.00029863,4]
[329074745,1718081538270,-500.0,0.00029863,4]
[329074746,1718081538280,-500.0,0.00029863,4]
[329074747,1718081538289,-500.0,0.00029863,4]
[329074748,1718081538300,-500.0,0.00029863,4]
[329074749,1718081538310,-151.0,0.00029863,7]
[329074750,1718081538320,-500.0,0.00029863,4]
[329074751,1718081538330,-500.0,0.00029863,4]
[329074752,1718081538340,-500.0,0.00029863,4]
[329074753,1718081538351,-4626.089528,0.00029863,7]
[329074754,1718081538360,-500.0,0.00029863,4]
[329074755,1718081538372,-500.0,0.00029863,4]
[329074756,1718081538382,-500.0,0.00029863,4]
[329074757,1718081538391,-500.0,0.00029863,4]
[329074758,1718081538402,-500.0,0.00029863,4]
[329074759,1718081538411,-500.0,0.00029863,4]
[329074760,1718081538421,-151.0,0.00029863,7]
[329074761,1718081538432,-500.0,0.00029863,4]
[329074762,1718081538442,-3048.72047236,0.00029863,7]
[329074763,1718081539538,-0.01441561,0.00029863,7]
[329074764,1718081539551,-1577.35464003,0.00029863,7]
[329074765,1718081539562,-55.79195598,0.00029863,4]
[329074766,1718081541116,-444.20804402,0.00029863,4]
[329074767,1718081541127,-500.0,0.00029863,4]
[329074768,1718081541137,-500.0,0.00029863,4]
[329074769,1718081541147,-500.0,0.00029863,4]
[329074770,1718081541157,-218.5946183,0.00029863,4]
[329074771,1718081541171,-281.4053817,0.00029863,4]
[329074772,1718081541181,-500.0,0.00029863,4]
[329074773,1718081541192,-151.0,0.00029863,7]
[329074774,1718081541203,-500.0,0.00029863,4]
[329074775,1718081541213,-4626.089528,0.00029863,7]
[329074776,1718081541225,-500.0,0.00029863,4]
[329074777,1718081541235,-500.0,0.00029863,4]
[329074778,1718081541246,-509.23106285,0.00029863,4]
[329074779,1718081541256,-500.0,0.00029863,4]
[329074780,1718081541266,-500.0,0.00029863,4]
[329074781,1718081541277,-500.0,0.00029863,4]
[329074782,1718081541288,-500.0,0.00029863,4]
[329074783,1718081541299,-151.0,0.00029863,7]
[329074784,1718081541310,-500.0,0.00029863,4]
[329074785,1718081541320,-4626.089528,0.00029863,7]
[329074786,1718081541331,-500.0,0.00029863,4]
[329074787,1718081541342,-500.0,0.00029863,4]
[329074788,1718081541353,-259.38339239,0.00029863,4]
[329074789,1718081541375,-240.61660761,0.00029863,4]
[329074790,1718081541386,-500.0,0.00029863,4]
[329074791,1718081541396,-500.0,0.00029863,4]
[329074792,1718081541408,-2849.23327817,0.00029863,7]
[329074793,1718081541430,-567.26922063,0.00029863,7]
[329074794,1718081541443,-1209.5870292,0.00029863,7]
[329074795,1718081541454,-151.0,0.00029863,7]
[329074796,1718081541466,-500.0,0.00029863,4]
[329074797,1718081541477,-500.0,0.00029863,4]
[329074798,1718081541487,-500.0,0.00029863,4]
[329074799,1718081541498,-500.0,0.00029863,4]
[329074800,1718081541508,-36.0086708,0.00029863,4]
[329074801,1718081543352,900.95725604,0.000105,2]
[329074802,1718081543377,1652.88241955,0.000105,2]
[329074803,1718081562375,1357.91818798,7.875e-05,2]
[329074804,1718081571883,10455.75276077,7.874e-05,2]
[329074805,1718081571921,3555.21068508,7.874e-05,2]
[329074806,1718081601459,2553.83967559,7.875e-05,2]
[329074817,1718082426345,-3901.20825362,9.938e-05,2]
[329074819,1718082433134,-443.88559839,9.938e-05,2]
[329074820,1718082433156,-331.19214549,9.987e-05,2]
[329074821,1718082433178,-367.51936553,9.987e-05,2]
[329074822,1718082433202,-4160.41389809,9.988e-05,2]
[329074829,1718082491186,-156.40620763,9.441e-05,2]
[329074837,1718082550127,-365.49406058,9.44e-05,2]
[329074838,1718082550157,-801.68517135,9.441e-05,2]
[329074839,1718082550184,-150.0,9.987e-05,2]
[329074840,1718082550212,-47643.09156807,9.988e-05,2]
[329074841,1718082551162,-22442.34,9.988e-05,2]
[329074843,1718082552102,-6513.2938,9.988e-05,2]
[329074844,1718082552143,-2981.1349,9.988e-05,2]
[329074845,1718082561789,-3848.95708058,9.988e-05,2]
[329074846,1718082562195,-199667.16717534,9.988e-05,2]
[329074847,1718082562219,-1415.28281391,9.988e-05,2]
[329074848,1718082562245,-156.91231772,0.00010192,2]
[329074849,1718082562271,-23811.51079445,0.0001049,2]
[329074850,1718082562295,-305.37480479,0.00010499,2]
[329074851,1718082562323,-25674.12995671,0.000105,2]
[329074852,1718082562369,-4760.7559912,0.000105,2]
[329074853,1718082562396,-4760.7559912,0.000105,2]
[329074854,1718082562431,-1000.0,0.00011531,2]
[329074855,1718082562460,-499.99,0.00012206,2]
[329074856,1718082562486,-1277.45304415,0.00012207,2]
[329074857,1718082562511,-1367.74,0.00012208,2]
[329074858,1718082562578,-177.40711053,0.00013281,2]
[329074865,1718082610327,2537.09084144,7.081e-05,2]
[329074867,1718082615680,171.21189757,5e-05,2]
[329074870,1718082633121,-1034.02400623,0.00013281,2]
[329074871,1718082633131,-316.26257579,0.00013282,2]
[329074872,1718082633142,-3.59445817,0.00013998,2]
[329074873,1718082633362,-147.39554183,0.00013998,2]
[329074874,1718082633373,-516.59759123,0.00013998,2]
[329074875,1718082633386,-266.27999998,0.00013998,2]
[329074876,1718082633400,-154.02240879,0.00013998,2]
[329074877,1718082633410,-345.97759121,0.00013999,2]
[329074878,1718082633428,-873.0,0.00013999,2]
[329074879,1718082633440,-313.76539328,0.00013999,2]
[329074880,1718082633681,-1671.32115809,0.00013999,2]
[329074881,1718082633838,-4089.22004284,0.00013999,2]
[329074882,1718082634105,-28200.69958814,0.00013999,2]
[329074883,1718082634116,-4566.76434917,0.00014,2]
[329074884,1718082634127,-34985.38247423,0.00015,2]
[329074885,1718082634139,-1046.71514559,0.00015,2]
[329074886,1718082634404,-243.72,0.00017808,2]
[329074887,1718082634415,-4485.96,0.00017808,2]
[329074888,1718082634427,-257.9877105,0.0002,2]
[329074889,1718082634438,-165.6,0.00020134,2]
[329074890,1718082634448,-183.02,0.0002028,2]
[329074891,1718082634459,-192.0,0.000222,3]
[329074892,1718082634469,-315.95,0.00022955,2]
[329074893,1718082634480,-238.7,0.00023072,2]
[329074894,1718082634492,-5584.17,0.00023252,2]
[329074895,1718082634502,-647.74,0.00023273,2]
[329074896,1718082634512,-250.0,0.00023378,2]
[329074897,1718082634523,-204.0,0.000242,2]
[329074898,1718082634533,-250.0,0.0002436,2]
[329074899,1718082634544,-158.31,0.00024384,2]
[329074900,1718082634555,-156.05,0.00024384,2]
[329074901,1718082634566,-175.95,0.00024583,2]
[329074902,1718082634577,-1000.0,0.00024583,2]
[329074903,1718082634587,-204.0,0.0002468,2]
[329074904,1718082634597,-150.0,0.00024759,2]
[329074905,1718082634608,-574.59350886,0.00024799,2]
[329074906,1718082634618,-574.59350877,0.00024799,2]
[329074907,1718082634628,-574.59350877,0.00024799,2]
[329074908,1718082634638,-574.59350877,0.00024799,2]
[329074909,1718082634648,-574.59350877,0.00024799,2]
[329074910,1718082634658,-574.59350877,0.00024799,2]
[329074911,1718082634673,-574.59350877,0.00024799,2]
[329074912,1718082634683,-250.0,0.00024873,2]
[329074913,1718082634693,-1203.96907319,0.00025,2]
[329074914,1718082634703,-3643.06,0.00025014,2]
[329074915,1718082634714,-204.0,0.0002516,2]
[329074916,1718082634725,-315.95,0.00025219,2]
[329074917,1718082634737,-574.59350877,0.00025346,2]
[329074918,1718082634747,-4440.45157197,0.00025433,2]
[329074920,1718082639478,-2226.39842803,0.00025433,2]
[329074921,1718082639495,-319.86,0.00025493,2]
[329074922,1718082639507,-773.64,0.00025512,2]
[329074923,1718082639526,-203.07,0.00025542,2]
[329074924,1718082639541,-204.0,0.0002565,2]
[329074925,1718082639558,-1500.0,0.00026,2]
[329074926,1718082639570,-647.74,0.00026012,2]
[329074927,1718082639597,-204.0,0.0002613,2]
[329074928,1718082639614,-205.0,0.0002613,2]
[329074929,1718082639635,-152.23041169,0.0002618,2]
[329074930,1718082639651,-165.43335561,0.0002618,2]
[329074931,1718082639662,-152.23041169,0.00026232,2]
[329074932,1718082639676,-154.89891691,0.00026247,2]
[329074933,1718082639686,-154.84051779,0.00026491,2]
[329074934,1718082639696,-181.42801088,0.00026592,2]
[329074935,1718082639708,-204.0,0.0002661,2]
[329074936,1718082639723,-205.0,0.0002661,2]
[329074937,1718082639744,-159.42035213,0.00026787,2]
[329074938,1718082639756,-395.34479723,0.00026875,2]
[329074939,1718082639774,-29.96760773,0.00026875,2]
[329074940,1718082639785,-154.37363827,0.00026981,2]
[329074941,1718082639802,-204.0,0.000271,2]
[329074942,1718082639817,-205.0,0.000271,2]
[329074943,1718082639830,-155.20294582,0.0002713,2]
[329074944,1718082639844,-155.09744248,0.00027292,2]
[329074945,1718082639858,-171.99,0.00027299,2]
[329074946,1718082639870,-150.12,0.00027397,2]
[329074947,1718082639880,-172.3,0.00027397,2]
[329074948,1718082639891,-388.33564085,0.00027399,2]
[329074949,1718082639902,-137.71111588,0.000274,2]
[329074950,1718082640034,-1612.28888412,0.000274,2]
[329074951,1718082640044,-348.0,0.000274,2]
[329074952,1718082640056,-829.0,0.000274,2]
[329074953,1718082640067,-222.76422777,0.000274,2]
[329074954,1718082640077,-1059.81697528,0.00027482,2]
[329074955,1718082640090,-217.63606887,0.00027482,2]
[329074956,1718082640100,-315.95,0.00027483,2]
[329074957,1718082640114,-152.23041169,0.00027498,2]
[329074958,1718082640125,-574.59350877,0.00027555,2]
[329074959,1718082640136,-157.01842345,0.00027556,2]
[329074960,1718082640149,-204.0,0.0002758,2]
[329074961,1718082640159,-205.0,0.0002758,2]
[329074962,1718082640172,-1000.0,0.00027656,2]
[329074963,1718082640183,-113.42313124,0.00027666,2]
[329074964,1718082640202,-66.57686876,0.00027666,2]
[329074965,1718082640219,-408.68707012,0.000279,2]
[329074966,1718082640233,-179.45279139,0.000279,2]
[329074967,1718082640255,-152.23041169,0.0002791,2]
[329074968,1718082640269,-200.005923,0.00027913,2]
[329074970,1718082640280,-1194.0,0.00027916,2]
[329074972,1718082640291,-1000.0,0.00028053,2]
[329074974,1718082640305,-469.1675983,0.00028054,2]
[329074976,1718082640317,-168.49170554,0.00028055,30]
[329074978,1718082640328,-165.43335561,0.00028065,2]
[329074980,1718082640341,-204.0,0.0002807,2]
[329074982,1718082640355,-205.0,0.0002807,2]
[329074983,1718082640368,-335.5,0.00028098,2]
[329074984,1718082640381,-168.49170554,0.00028164,30]
[329074985,1718082640394,-189.54483039,0.000282,2]
[329074986,1718082640410,-154.37363827,0.00028222,2]
[329074987,1718082640426,-200.005923,0.00028262,2]
[329074988,1718082640437,-168.49170554,0.00028301,30]
[329074989,1718082640448,-168.15176297,0.00028359,2]
[329074990,1718082640459,-168.49170554,0.00028411,30]
[329074991,1718082640469,-160.82059718,0.00028451,2]
[329074992,1718082640479,-152.23041169,0.00028466,2]
[329074993,1718082640489,-168.49170554,0.00028521,30]
[329074994,1718082640502,-157.26562579,0.00028522,2]
[329074995,1718082640513,-204.0,0.0002855,2]